bitfinex-derivatives/quotes_BTCF0:USTF0_20250411
["timestamp","ask_amount","ask_price","bid_price","bid_amount"]
[1744369338071,0.1523945,82628.0,82627.0,0.0004841]
[1744369339886,0.1210945,82628.0,82627.0,0.0004841]
[1744369340679,0.1210945,82628.0,82614.0,0.3608]
[1744369340680,0.1211136,82615.0,82614.0,0.3608]
[1744369340880,0.1211179,82612.0,82611.0,0.063]
[1744369343585,0.4819112,82617.0,82611.0,0.063]
[1744369343885,0.4213565,82617.0,82616.0,0.1211121]
[1744369344195,0.4213965,82617.0,82616.0,0.1211121]
[1744369344382,0.4213965,82617.0,82614.0,0.0605568]
[1744369344383,0.1211136,82615.0,82614.0,0.0605572]
[1744369344583,0.1211136,82615.0,82614.0,0.0907572]
[1744369344981,4e-05,82617.0,82616.0,0.1211121]
[1744369345692,0.1211092,82618.0,82617.0,0.1211106]
[1744369346598,0.1211092,82618.0,82617.0,0.1523106]
[1744369348687,0.1211077,82619.0,82618.0,0.1211077]
[1744369349083,0.1211077,82619.0,82618.0,0.1519077]
[1744369349692,0.1211477,82619.0,82618.0,0.1519077]
[1744369349986,0.060552,82622.0,82619.0,0.242211]
[1744369349987,0.1211044,82622.0,82619.0,0.242211]
[1744369350191,0.0605538,82620.0,82619.0,0.242211]
[1744369350389,0.0605538,82620.0,82618.0,0.03201128]
[1744369350390,0.27550011,82628.0,82624.0,0.0605498]
[1744369350591,0.1211106,82617.0,82616.0,0.0314]
[1744369350795,0.1211194,82611.0,82610.0,0.00018153]
[1744369351381,0.1541194,82611.0,82610.0,0.00018153]
[1744369352395,0.5149194,82611.0,82610.0,0.00018153]
[1744369353097,0.41295399,82611.0,82610.0,0.00018153]
[1744369354897,0.50659399,82611.0,82610.0,0.00018153]
[1744369356296,0.53889399,82611.0,82610.0,0.00018153]
[1744369356698,0.1211297,82604.0,82601.0,0.0304]
[1744369357097,0.1876297,82604.0,82601.0,0.0304]
[1744369357610,0.1876297,82604.0,82603.0,0.01629391]
[1744369359397,0.1876297,82604.0,82603.0,0.00048424]
[1744369359596,0.1211297,82604.0,82603.0,0.03098424]
[1744369359803,0.0605631,82607.0,82603.0,0.03098424]
[1744369360106,0.1211697,82604.0,82603.0,0.03098424]
[1744369361203,0.1211697,82604.0,82603.0,0.04682105]
[1744369362493,0.1210697,82604.0,82603.0,0.04682105]
[1744369362693,0.1210697,82604.0,82603.0,0.03098424]
[1744369364397,0.1210697,82604.0,82603.0,0.04696251]
[1744369368312,0.1210697,82604.0,82603.0,0.03098424]
[1744369369406,4e-05,82604.0,82603.0,0.15211534]
[1744369369608,0.0605626,82607.0,82606.0,0.1211267]
[1744369369810,0.1816913,82607.0,82606.0,0.1526267]
[1744369370307,0.1817313,82607.0,82606.0,0.1526267]
[1744369371309,0.1817313,82607.0,82606.0,1.04763899]
[1744369372310,5.401e-05,82615.0,82614.0,0.121115]
[1744369372505,0.1211136,82615.0,82614.0,0.153615]
[1744369372699,0.00018153,82619.0,82618.0,0.1211092]
[1744369372900,0.00917017,82624.0,82623.0,0.1211018]
[1744369373099,0.1211003,82625.0,82624.0,0.1211004]
[1744369373303,0.1211003,82625.0,82624.0,0.1524004]
[1744369375108,0.1210965,82627.0,82626.0,0.1816446]
[1744369375413,0.0605461,82630.0,82629.0,0.1816358]
[1744369375607,0.00018153,82633.0,82632.0,0.1210886]
[1744369375811,0.00018153,82633.0,82632.0,0.4818886]
[1744369376207,0.00022153,82633.0,82632.0,0.4818886]
[1744369377611,0.12130873,82633.0,82632.0,0.8426886]
[1744369378011,0.121096,82627.0,82626.0,0.00920947]
[1744369378513,0.186196,82627.0,82626.0,0.00920947]
[1744369378812,0.186196,82627.0,82626.0,0.13030687]
[1744369379109,0.1210974,82626.0,82625.0,0.4818985]
[1744369379304,0.1210974,82626.0,82625.0,0.5142985]
[1744369379505,0.1871974,82626.0,82625.0,0.5142985]
[1744369382808,0.1871974,82626.0,82625.0,0.1534985]
[1744369383519,0.51208,82655.0,82625.0,0.1534985]
[1744369383520,0.00018153,82633.0,82632.0,0.1210886]
[1744369383716,0.00018153,82633.0,82632.0,0.4818886]
[1744369384011,7.291e-05,82637.0,82636.0,0.1210828]
[1744369384214,0.09348,82653.0,82636.0,0.3608]
[1744369384412,5.401e-05,82642.0,82641.0,0.1210754]
[1744369384602,0.0327,82655.0,82649.0,0.1210637]
[1744369384808,0.01070097,82656.0,82649.0,0.13713697]
[1744369385008,0.12123213,82658.0,82649.0,0.17043697]
[1744369385216,0.12123213,82658.0,82649.0,0.20353697]
[1744369385413,9.842e-05,82651.0,82649.0,0.20353697]
[1744369385612,0.1210569,82654.0,82649.0,0.20353697]
[1744369385812,0.00044,82650.0,82649.0,0.20353697]
[1744369386013,0.00044,82650.0,82649.0,0.17023697]
[1744369386212,0.1215023,82650.0,82649.0,0.17023697]
[1744369386706,0.1515023,82650.0,82649.0,0.17023697]
[1744369386907,0.1515023,82650.0,82649.0,0.04917327]
[1744369387507,0.1515023,82650.0,82649.0,0.17023697]
[1744369388114,0.03044,82650.0,82649.0,0.17023697]
[1744369388917,0.03044,82650.0,82649.0,0.1541637]
[1744369391617,0.03044,82650.0,82649.0,0.17049798]
[1744369392817,0.00044,82650.0,82649.0,0.17049798]
[1744369393018,0.0004,82650.0,82649.0,0.17049798]
[1744369393211,0.00044,82650.0,82649.0,0.17049798]
[1744369393613,0.0004,82650.0,82649.0,0.17049798]
[1744369393812,0.00044,82650.0,82649.0,0.17049798]
[1744369394012,0.0004,82650.0,82649.0,0.17049798]
[1744369394213,0.00044,82650.0,82649.0,0.17049798]
[1744369394719,0.00044,82650.0,82649.0,0.20239798]
[1744369395019,0.00044,82650.0,82649.0,0.56319798]
[1744369398419,0.00044,82650.0,82649.0,0.53129798]
[1744369400516,0.00044,82650.0,82649.0,0.56229798]
[1744369402219,0.00044,82650.0,82649.0,0.57866986]
[1744369403323,0.00044,82650.0,82649.0,0.56229798]
[1744369405618,0.0004,82650.0,82649.0,0.56229798]
[1744369405925,0.00044,82650.0,82649.0,0.56229798]
[1744369406120,5.401e-05,82655.0,82654.0,0.1210564]
[1744369406325,0.00025444,82658.0,82657.0,0.121052]
[1744369406827,0.00022153,82658.0,82657.0,0.20920531]
[1744369407126,0.0004,82674.0,82659.0,0.0605244]
[1744369407329,0.0004,82674.0,82673.0,0.1210286]
[1744369407827,0.1214271,82674.0,82673.0,0.13736288]
[1744369408028,0.1214271,82674.0,82673.0,0.16926288]
[1744369408228,0.0004,82674.0,82673.0,0.16926288]
[1744369408434,0.00044,82674.0,82673.0,0.15526288]
[1744369410230,0.06154,82674.0,82673.0,0.15526288]
[1744369414634,0.06154,82674.0,82673.0,0.16926288]
[1744369418734,0.06154,82674.0,82673.0,0.53006288]
[1744369418937,0.06154,82674.0,82673.0,0.16926288]
[1744369419535,0.06154,82674.0,82673.0,0.04823428]
[1744369420437,0.06154,82674.0,82673.0,0.16926288]
[1744369424532,0.06154,82674.0,82673.0,0.04823428]
[1744369424836,0.1825671,82674.0,82673.0,0.04823428]
[1744369425237,0.06154,82674.0,82673.0,0.16926288]
[1744369425434,0.03054,82674.0,82673.0,0.20206288]
[1744369425638,0.0004,82674.0,82673.0,0.20206288]
[1744369425842,0.00018153,82682.0,82681.0,0.1210169]
[1744369426444,0.00022153,82682.0,82681.0,0.1210169]
[1744369426736,0.00022153,82682.0,82681.0,0.13735118]
[1744369427036,0.00022153,82682.0,82681.0,0.20095118]
[1744369427441,0.00022153,82682.0,82681.0,0.63919677]
[1744369427639,0.00018153,82682.0,82681.0,0.63919677]
[1744369427836,0.00022153,82682.0,82681.0,0.63919677]
[1744369428233,5.401e-05,82688.0,82687.0,0.1210081]
[1744369428543,0.0305,82697.0,82696.0,0.1209949]
[1744369428837,0.0614,82697.0,82696.0,0.1209949]
[1744369429042,0.1823935,82697.0,82696.0,0.13732918]
[1744369429937,0.1823935,82697.0,82696.0,0.01633428]
[1744369432045,0.00047291,82698.0,82696.0,0.01633428]
[1744369432231,0.00047291,82698.0,82697.0,0.1817935]
[1744369432436,0.00047291,82698.0,82697.0,0.19467107]
[1744369432637,0.00047291,82698.0,82697.0,0.19812778]
[1744369434549,0.00047291,82698.0,82697.0,0.16782778]
[1744369434743,0.12146491,82698.0,82697.0,0.01633428]
[1744369435248,0.18646491,82698.0,82697.0,0.01633428]
[1744369436545,0.186392,82698.0,82697.0,0.01633428]
[1744369436848,0.00044,82698.0,82697.0,0.13732778]
[1744369437147,0.06574,82698.0,82697.0,0.13732778]
[1744369437350,0.00044,82698.0,82697.0,0.01633428]
[1744369437548,0.0004,82698.0,82697.0,0.16822778]
[1744369437740,0.00044,82698.0,82697.0,0.20002778]
[1744369438648,0.00044,82698.0,82697.0,0.07903428]
[1744369438843,0.00044,82698.0,82697.0,0.20002778]
[1744369439044,0.00044,82698.0,82697.0,0.07903428]
[1744369439248,0.00044,82698.0,82697.0,0.20002778]
[1744369441156,0.0004,82698.0,82697.0,0.20002778]
[1744369441357,0.00044,82698.0,82697.0,0.20002778]
[1744369442057,0.0004,82698.0,82697.0,0.20002778]
[1744369442257,0.00044,82698.0,82697.0,0.212992]
[1744369442553,0.00044,82698.0,82697.0,0.23025455]
[1744369442749,0.00044,82698.0,82697.0,0.21299184]
[1744369443155,0.00044,82698.0,82697.0,0.63845461]
[1744369443550,0.0004,82698.0,82697.0,0.63845461]
[1744369443748,0.00044,82698.0,82697.0,0.63845461]
[1744369444457,0.00044,82698.0,82697.0,0.63855386]
[1744369446053,0.00044,82698.0,82697.0,0.64921801]
[1744369446248,0.00044,82698.0,82697.0,0.52822451]
[1744369446448,0.121432,82698.0,82697.0,0.43519843]
[1744369446649,0.121432,82698.0,82697.0,0.42453428]
[1744369446960,0.121432,82698.0,82697.0,0.43533291]
[1744369447260,0.121432,82698.0,82697.0,0.42453428]
[1744369447556,0.183832,82698.0,82697.0,0.42453428]
[1744369447973,0.06284,82698.0,82697.0,0.4082]
[1744369448171,0.183832,82698.0,82697.0,0.4082]
[1744369448876,0.1209939,82697.0,82695.0,0.1209961]
[1744369449374,0.0623,82696.0,82695.0,0.1209961]
[1744369453978,0.0623,82696.0,82695.0,0.01591742]
[1744369454274,0.0623,82696.0,82695.0,0.1482108]
[1744369454570,0.0323,82696.0,82695.0,0.13691382]
[1744369454775,0.0323,82696.0,82695.0,0.20311382]
[1744369455576,0.03234,82696.0,82695.0,0.20311382]
[1744369456172,0.03234,82696.0,82695.0,0.21397657]
[1744369456575,0.03234,82696.0,82695.0,0.1871964]
[1744369457468,4e-05,82696.0,82695.0,0.1871964]
[1744369457771,0.0004,82698.0,82697.0,0.1209935]
[1744369458675,0.0004,82698.0,82697.0,0.13709852]
[1744369460178,0.0004,82698.0,82697.0,0.15354539]
[1744369460366,0.00044,82698.0,82697.0,0.15354539]
[1744369460572,0.00044,82698.0,82697.0,0.13709852]
[1744369461075,0.00044,82698.0,82697.0,0.15351063]
[1744369461267,0.00044,82698.0,82697.0,0.15350782]
[1744369461471,0.00044,82698.0,82697.0,0.21550782]
[1744369461679,0.0004,82698.0,82697.0,0.19909852]
[1744369461878,0.00044,82698.0,82697.0,0.19909852]
[1744369463172,0.00044,82698.0,82697.0,0.1829935]
[1744369464583,0.00044,82698.0,82697.0,0.19891288]
[1744369467874,0.00044,82698.0,82697.0,0.1829935]
[1744369468073,0.0004,82698.0,82697.0,0.1829935]
[1744369468384,0.00044,82698.0,82697.0,0.1829935]
[1744369469580,0.0004,82698.0,82697.0,0.1829935]
[1744369469781,0.00044,82698.0,82697.0,0.1829935]
[1744369470371,0.5,82704.0,82703.0,0.1209847]
[1744369470575,0.5,82704.0,82703.0,0.4817847]
[1744369470782,0.50004,82704.0,82703.0,0.5466847]
[1744369471686,5.401e-05,82713.0,82707.0,0.0604893]
[1744369471887,5.401e-05,82713.0,82712.0,0.1209715]
[1744369472279,7.291e-05,82719.0,82718.0,0.1209627]
[1744369472478,7.291e-05,82719.0,82718.0,0.5437627]
[1744369472680,0.033,82722.0,82721.0,0.1209584]
[1744369473080,0.033,82722.0,82721.0,0.1829584]
[1744369473286,0.03304,82722.0,82721.0,0.1829584]
[1744369473475,0.03304,82722.0,82719.0,0.1209609]
[1744369473679,0.0306,82721.0,82715.0,0.0604835]
[1744369473880,0.0306,82721.0,82720.0,0.1209598]
[1744369475280,0.0306,82721.0,82720.0,0.1511598]
[1744369480789,0.0306,82721.0,82720.0,0.1818598]
[1744369481985,0.03064,82721.0,82720.0,0.1818598]
[1744369482584,0.0306,82721.0,82720.0,0.2135598]
[1744369482778,0.03064,82721.0,82720.0,0.2135598]
[1744369484090,0.03054,82721.0,82720.0,0.2135598]
[1744369484682,4e-05,82721.0,82720.0,0.2135598]
[1744369485088,0.0004,82722.0,82721.0,0.1209584]
[1744369485487,0.0004,82722.0,82721.0,0.1828584]
[1744369487399,0.0004,82722.0,82721.0,0.1524584]
[1744369500604,0.0004,82722.0,82721.0,0.1851584]
[1744369503919,0.00044,82722.0,82721.0,0.1851584]
[1744369504514,0.00044,82722.0,82721.0,0.0642]
[1744369504824,0.00044,82722.0,82721.0,0.1851584]
[1744369511123,0.0004,82722.0,82721.0,0.1851584]
[1744369511325,0.00044,82722.0,82721.0,0.1851584]
[1744369521635,0.0004,82722.0,82721.0,0.1851584]
[1744369521832,0.00044,82722.0,82721.0,0.1851584]
[1744369522536,0.0004,82722.0,82721.0,0.1851584]
[1744369522732,0.00044,82722.0,82721.0,0.1851584]
[1744369523433,0.00018142,82727.0,82726.0,0.120951]
[1744369523630,0.031,82744.0,82735.0,0.1209379]
[1744369523836,0.1138899,82736.0,82735.0,0.1209379]
[1744369524038,0.11383589,82739.0,82738.0,0.1209335]
[1744369524237,0.11383589,82739.0,82738.0,0.1813335]
[1744369524538,0.11383589,82739.0,82738.0,0.2114335]
[1744369527542,0.031,82742.0,82741.0,0.1209291]
[1744369528041,0.031,82742.0,82741.0,0.1848291]
[1744369530347,5.401e-05,82744.0,82743.0,0.1209262]
[1744369530546,0.0324,82745.0,82744.0,0.1209247]
[1744369530844,0.0324,82745.0,82744.0,0.1812247]
[1744369531240,0.0632,82745.0,82744.0,0.1812247]
[1744369535953,0.120935,82737.0,82722.0,0.3608]
[1744369536148,0.1209437,82731.0,82730.0,0.0302813]
[1744369536354,0.1209437,82731.0,82730.0,0.0001813]
[1744369537043,0.5434437,82731.0,82730.0,0.0001813]
[1744369537254,0.5434437,82731.0,82716.0,0.4082]
[1744369537255,0.1209584,82721.0,82716.0,0.4082]
[1744369537451,0.1209584,82721.0,82715.0,0.2881425]
[1744369538058,0.1835584,82721.0,82715.0,0.2881425]
[1744369538256,0.1209671,82715.0,82714.0,0.1209685]
[1744369540948,0.13238229,82715.0,82714.0,0.1209685]
[1744369542048,0.19498229,82715.0,82714.0,0.1209685]
[1744369542245,0.19498229,82715.0,82714.0,0.1516685]
[1744369545556,0.19498229,82715.0,82714.0,0.0307]
[1744369546065,0.16288229,82715.0,82714.0,0.0307]
[1744369546265,0.19568229,82715.0,82714.0,0.0307]
[1744369546865,0.19568229,82715.0,82714.0,0.1516686]
[1744369547766,0.1209701,82713.0,82712.0,0.1211517]
[1744369547966,0.1209701,82713.0,82712.0,0.0001813]
[1744369548166,0.1836701,82713.0,82712.0,0.0001813]
[1744369551364,0.1209832,82704.0,82703.0,0.0257813]
[1744369552269,0.1827832,82704.0,82703.0,0.0257813]
[1744369552571,0.1827832,82704.0,82703.0,0.146766]
[1744369553261,0.1827832,82704.0,82703.0,0.0257813]
[1744369555865,0.19185705,82704.0,82703.0,0.0257813]
[1744369556965,0.19185705,82704.0,82703.0,0.146766]
[1744369557358,0.19185705,82704.0,82703.0,0.0257813]
[1744369564974,0.19406678,82704.0,82703.0,0.0257813]
[1744369566674,0.16306678,82704.0,82703.0,0.146766]
[1744369567068,0.16306678,82704.0,82703.0,0.210066]
[1744369567373,0.16306678,82704.0,82703.0,0.0257813]
[1744369567688,0.55466678,82704.0,82703.0,0.0257813]
[1744369567881,0.19386678,82704.0,82703.0,0.0257813]
[1744369568175,0.55466678,82704.0,82703.0,0.0257813]
[1744369568765,0.1209876,82701.0,82700.0,0.0069]
[1744369569381,0.2129876,82701.0,82700.0,0.0069]
[1744369569769,0.2129876,82701.0,82700.0,0.0375]
[1744369569964,0.21519733,82701.0,82700.0,0.0375]
[1744369571175,0.21519733,82701.0,82700.0,0.0069]
[1744369572385,0.21519733,82701.0,82695.0,0.0001813]
[1744369572386,0.1209949,82696.0,82695.0,0.0001813]
[1744369572576,0.121011,82685.0,82684.0,0.0306]
[1744369572878,0.12322073,82685.0,82684.0,0.1516125]
[1744369573074,0.00224973,82685.0,82684.0,0.1516125]
[1744369573269,0.00224973,82685.0,82684.0,0.1835125]
[1744369573675,0.00220973,82685.0,82684.0,0.1835125]
[1744369573874,0.00224973,82685.0,82684.0,0.4335125]
[1744369574178,0.00018141,82693.0,82692.0,0.11713311]
[1744369574579,0.00018141,82693.0,82692.0,0.21233311]
[1744369575279,0.00022141,82693.0,82692.0,0.21233311]
[1744369576882,0.12122071,82693.0,82692.0,0.21233311]
[1744369577485,0.00022141,82693.0,82692.0,0.21233311]
[1744369577882,0.12122071,82693.0,82692.0,0.21233311]
[1744369581681,0.00022141,82693.0,82692.0,0.21233311]
[1744369584190,0.1209799,82707.0,82706.0,0.1209788]
[1744369584581,0.1209799,82707.0,82706.0,0.2151788]
[1744369584782,0.1210199,82707.0,82706.0,0.2151788]
[1744369585387,4e-05,82707.0,82706.0,0.2151788]
[1744369585590,0.00920292,82710.0,82709.0,0.1209759]
[1744369585992,0.1209701,82713.0,82712.0,0.1209715]
[1744369586490,0.1209701,82713.0,82712.0,0.1844715]
[1744369586689,0.0309,82714.0,82713.0,0.1209701]
[1744369586887,0.00023542,82715.0,82714.0,0.1209686]
[1744369587189,0.00018141,82715.0,82714.0,0.1527686]
[1744369587395,0.00022141,82715.0,82714.0,0.1844686]
[1744369587685,0.00018141,82715.0,82714.0,0.1844686]
[1744369587896,0.00022141,82715.0,82714.0,0.1844686]
[1744369588087,0.00018141,82715.0,82714.0,0.1844686]
[1744369588284,0.0004,82722.0,82721.0,0.1209584]
[1744369588794,0.1213969,82722.0,82721.0,0.2160584]
[1744369588995,0.1213969,82722.0,82721.0,0.1523584]
[1744369589494,0.1539969,82722.0,82721.0,0.1523584]
[1744369594989,0.1539969,82722.0,82721.0,0.1855584]
[1744369595996,0.1539969,82722.0,82721.0,0.0646]
[1744369596196,0.1539969,82722.0,82721.0,0.0314]
[1744369596494,0.1814412,82720.0,82719.0,0.0604801]
[1744369596699,0.1814412,82720.0,82719.0,0.2147414]
[1744369597801,0.2143412,82720.0,82719.0,0.2147414]
[1744369598296,0.1814412,82720.0,82719.0,0.2147414]
[1744369598595,0.00044,82722.0,82719.0,0.4848801]
[1744369598797,0.00044,82722.0,82721.0,0.1209584]
[1744369599196,0.0004,82722.0,82721.0,0.2129584]
[1744369599397,0.00044,82722.0,82721.0,0.2129584]
[1744369600297,0.00018141,82730.0,82729.0,0.1209467]
[1744369600505,0.00018141,82730.0,82729.0,0.5435467]
[1744369600697,0.00022141,82730.0,82729.0,0.5435467]
[1744369603204,0.00018141,82730.0,82729.0,0.5435467]
[1744369603394,0.00022141,82730.0,82729.0,0.5435467]
[1744369604303,5.401e-05,82737.0,82736.0,0.1209364]
[1744369604506,0.0004,82746.0,82745.0,0.1209233]
[1744369605218,0.0004,82746.0,82745.0,0.2157233]
[1744369605419,0.00044,82746.0,82745.0,0.2157233]
[1744369606725,0.1213618,82746.0,82745.0,0.2157233]
[1744369606934,0.00044,82746.0,82745.0,0.2157233]
[1744369609328,0.0004,82746.0,82745.0,0.2157233]
[1744369609521,0.00011932,82754.0,82753.0,0.1209116]
[1744369609825,0.453,82764.0,82753.0,0.1209116]
[1744369609826,0.0307,82763.0,82758.0,0.0604521]
[1744369610022,0.0627,82763.0,82762.0,0.1208984]
[1744369610216,0.183597,82763.0,82762.0,0.1208984]
[1744369610419,0.183597,82763.0,82762.0,0.1849984]
[1744369611019,0.183597,82763.0,82762.0,0.1534984]
[1744369612326,0.0307,82763.0,82762.0,0.1534984]
[1744369612527,0.0307,82763.0,82762.0,0.1849984]
[1744369613025,0.1208693,82782.0,82769.0,0.1208882]
[1744369613323,0.1208752,82778.0,82769.0,0.13018115]
[1744369613528,0.00044,82770.0,82769.0,0.13018115]
[1744369613729,0.0004,82770.0,82769.0,0.13018115]
[1744369614225,0.0004,82770.0,82769.0,0.19278115]
[1744369614430,0.00044,82770.0,82769.0,0.19278115]
[1744369615431,0.0305,82778.0,82777.0,0.1208765]
[1744369615632,5.401e-05,82779.0,82778.0,0.1208751]
[1744369615830,5.401e-05,82779.0,82778.0,0.1828751]
[1744369616233,0.0306,82781.0,82780.0,0.1208721]
[1744369616831,0.03064,82781.0,82780.0,0.1208721]
[1744369619435,0.06234,82781.0,82780.0,0.1208721]
[1744369619630,4e-05,82781.0,82780.0,0.1208721]
[1744369620232,0.06484,82781.0,82780.0,0.1208721]
[1744369621334,0.1857107,82781.0,82780.0,0.1208721]
[1744369623327,0.03174,82781.0,82780.0,0.1208721]
[1744369624027,0.0333,82790.0,82784.0,0.1208663]
[1744369624235,0.0318,82790.0,82789.0,0.120859]
[1744369624836,0.03184,82790.0,82789.0,0.120859]
[1744369625039,0.03184,82790.0,82789.0,0.152059]
[1744369625233,4e-05,82790.0,82789.0,0.152059]
[1744369625732,0.0305,82793.0,82789.0,0.152059]
[1744369625733,0.0305,82793.0,82792.0,0.1208546]
[1744369626336,0.0305,82793.0,82792.0,0.1518546]
[1744369626545,0.0305,82793.0,82792.0,0.1208546]
[1744369626835,0.0625,82793.0,82792.0,0.1208546]
[1744369627423,0.1833532,82793.0,82792.0,0.1208546]
[1744369627928,0.0625,82793.0,82792.0,0.1208546]
[1744369628839,0.0625,82793.0,82792.0,0.1519546]
[1744369629034,0.0305,82793.0,82792.0,0.1329546]
[1744369629236,0.0637,82793.0,82792.0,0.1329546]
[1744369629435,0.1845532,82793.0,82792.0,0.1018546]
[1744369630238,0.1845532,82793.0,82792.0,0.1329546]
[1744369630440,0.0637,82793.0,82792.0,0.1329546]
[1744369631032,0.0637,82793.0,82792.0,0.1646546]
[1744369631636,0.0305,82793.0,82792.0,0.1646546]
[1744369632233,0.03054,82793.0,82792.0,0.1646546]
[1744369632640,0.03054,82793.0,82792.0,0.18050378]
[1744369632833,4e-05,82793.0,82792.0,0.18050378]
[1744369633139,0.00013287,82811.0,82810.0,0.1208284]
[1744369633640,0.1208201,82816.0,82815.0,0.1208196]
[1744369634038,0.1842201,82816.0,82815.0,0.1208196]
[1744369634237,0.0634,82816.0,82815.0,0.1208196]
[1744369634839,0.06344,82816.0,82815.0,0.1208196]
[1744369635137,0.06344,82816.0,82812.0,0.1208246]
[1744369635138,0.0604105,82815.0,82812.0,0.1208246]
[1744369635333,0.06344,82816.0,82815.0,0.1208211]
[1744369635533,0.0004,82818.0,82817.0,0.1208181]
[1744369635738,0.0004,82818.0,82817.0,0.12997762]
[1744369636033,0.0004,82818.0,82817.0,0.19467762]
[1744369636631,0.0004,82818.0,82817.0,0.1535181]
[1744369636836,0.0004,82818.0,82813.0,0.1208232]
[1744369637136,0.0604109,82815.0,82814.0,0.1812279]
[1744369637838,0.0604109,82815.0,82814.0,0.0604098]
[1744369639340,0.0604109,82815.0,82814.0,0.0936098]
[1744369639733,0.1208203,82816.0,82815.0,0.1812278]
[1744369642140,0.120824,82813.0,82812.0,0.1208238]
[1744369642534,0.1208342,82806.0,82805.0,0.21666404]
[1744369643036,0.2122447,82812.0,82811.0,0.1208269]
[1744369643834,0.1208284,82810.0,82809.0,0.0604145]
[1744369644240,0.1208342,82806.0,82805.0,0.21666404]
[1744369644643,0.1208342,82806.0,82805.0,0.33749974]
[1744369645948,0.1208342,82806.0,82805.0,0.1208357]
[1744369647642,0.1208371,82804.0,82803.0,0.0604189]
[1744369647839,0.1208386,82803.0,82800.0,0.21666404]
[1744369648343,0.4816386,82803.0,82800.0,0.21666404]
[1744369648848,0.6061986,82803.0,82800.0,0.21666404]
[1744369649443,0.6061986,82803.0,82791.0,0.21666404]
[1744369649644,0.1208546,82792.0,82791.0,0.19484523]
[1744369649944,0.4816546,82792.0,82791.0,0.19484523]
[1744369650141,0.5458546,82792.0,82791.0,0.31570133]
[1744369650340,0.5458546,82792.0,82791.0,0.19484523]
[1744369650745,0.55737256,82792.0,82791.0,0.19484523]
[1744369650944,0.55737256,82792.0,82791.0,0.15434783]
[1744369650945,0.80737256,82792.0,82791.0,0.15434783]
[1744369651139,0.80737256,82792.0,82791.0,0.06167333]
[1744369651738,0.65821741,82792.0,82791.0,0.06167333]
[1744369652145,0.65825741,82792.0,82791.0,0.06167333]
[1744369652651,0.1208605,82788.0,82787.0,0.2881425]
[1744369653050,0.1527605,82788.0,82787.0,0.2881425]
[1744369653256,0.1208663,82784.0,82783.0,0.00018119]
[1744369653752,0.1527663,82784.0,82783.0,0.00018119]
[1744369654057,0.5135663,82784.0,82783.0,0.00018119]
[1744369654853,0.5440663,82784.0,82783.0,0.00018119]
[1744369657352,0.1208721,82780.0,82779.0,0.01818119]
[1744369657759,0.1838721,82780.0,82779.0,0.13905479]
[1744369658347,0.2156721,82780.0,82779.0,0.13905479]
[1744369658554,0.2156721,82780.0,82779.0,0.01818119]
[1744369659057,0.2156721,82780.0,82778.0,0.2882]
[1744369659058,0.1208736,82779.0,82778.0,0.2882]
[1744369659560,0.1845736,82779.0,82778.0,0.4090751]
[1744369660356,0.5453736,82779.0,82778.0,0.4090751]
[1744369660557,0.5453736,82779.0,82778.0,0.4418751]
[1744369661053,0.5453736,82779.0,82778.0,0.321]
[1744369661251,0.5453736,82779.0,82778.0,0.2882]
[1744369664671,0.1845736,82779.0,82778.0,0.2882]
[1744369664870,0.5453736,82779.0,82778.0,0.2882]
[1744369665071,0.5453736,82779.0,82778.0,0.3195]
[1744369666164,0.5453736,82779.0,82778.0,0.3511]
[1744369667170,0.5453736,82779.0,82778.0,0.3198]
[1744369667476,0.5453736,82779.0,82778.0,0.2882]
[1744369668468,0.3608,82795.0,82778.0,0.2882]
[1744369668469,0.00927707,82839.0,82834.0,0.1207933]
[1744369668672,0.0617,82841.0,82828.0,0.3608]
[1744369668866,0.0603888,82845.0,82829.0,0.1208001]
[1744369669070,0.0308,82840.0,82829.0,0.0647]
[1744369669372,0.0617,82834.0,82825.0,0.13099784]
[1744369669568,0.120805,82826.0,82825.0,0.13099784]
[1744369669965,0.0617,82827.0,82824.0,0.00018119]
[1744369670160,0.0617,82825.0,82824.0,0.00018119]
[1744369670365,0.1825065,82825.0,82824.0,0.00018119]
[1744369671571,0.0617,82825.0,82824.0,0.00018119]
[1744369672159,0.1825065,82825.0,82824.0,0.00018119]
[1744369672368,0.2126065,82825.0,82824.0,0.00018119]
[1744369675771,0.0918,82825.0,82824.0,0.00018119]
[1744369676074,0.2126065,82825.0,82824.0,0.00018119]
[1744369678069,0.0918,82825.0,82824.0,0.00018119]
[1744369678268,0.09184,82825.0,82824.0,0.00018119]
[1744369678971,0.2126465,82825.0,82824.0,0.00018119]
[1744369681770,0.1825465,82825.0,82824.0,0.00018119]
[1744369682173,0.1825065,82825.0,82824.0,0.00018119]
[1744369682381,0.1825465,82825.0,82824.0,0.00018119]
[1744369682681,0.06174,82825.0,82824.0,0.03068119]
[1744369683484,0.1825465,82825.0,82824.0,0.03068119]
[1744369683680,0.06174,82825.0,82824.0,0.03068119]
[1744369683884,0.1825465,82825.0,82824.0,0.03068119]
[1744369685587,0.1825465,82825.0,82824.0,0.00018119]
[1744369691788,0.1208079,82824.0,82823.0,0.01568119]
[1744369691985,0.06174,82825.0,82823.0,0.01568119]
[1744369692290,0.03114,82824.0,82823.0,0.37648119]
[1744369692795,0.1519479,82824.0,82823.0,0.37648119]
[1744369692993,0.1824479,82824.0,82823.0,0.37648119]
[1744369693396,0.1824479,82824.0,82823.0,0.01568119]
[1744369693689,0.1519479,82824.0,82823.0,0.01568119]
[1744369693890,4e-05,82824.0,82823.0,0.01568119]
[1744369694095,4e-05,82824.0,82823.0,0.13649059]
[1744369694392,0.1518998,82830.0,82828.0,0.1208014]
[1744369694692,0.0311,82830.0,82826.0,0.060402]
[1744369694893,0.0311,82830.0,82829.0,0.1208006]
[1744369695096,0.1518992,82830.0,82829.0,0.1208006]
[1744369695587,0.1207992,82830.0,82829.0,0.1208006]
[1744369695789,0.0317,82831.0,82829.0,0.1208006]
[1744369695988,0.0317,82831.0,82830.0,0.0305]
[1744369696389,0.0603981,82832.0,82830.0,0.0305]
[1744369696390,5.401e-05,82833.0,82832.0,0.1207963]
[1744369696593,0.4815922,82835.0,82834.0,0.1207933]
[1744369696791,0.1207948,82834.0,82832.0,0.0908979]
[1744369696990,0.1207948,82833.0,82832.0,0.0305]
[1744369697499,0.1208348,82833.0,82832.0,0.0305]
[1744369697696,0.1530348,82833.0,82832.0,0.1512963]
[1744369698097,0.0603955,82836.0,82833.0,0.1207942]
[1744369698297,0.0603938,82838.0,82834.0,0.1207933]
[1744369698504,0.1207919,82835.0,82834.0,0.1207933]
[1744369698689,0.0603938,82838.0,82832.0,0.0603981]
[1744369698894,5.401e-05,82839.0,82838.0,0.1207875]
[1744369699599,0.00013287,82846.0,82838.0,0.1207875]